Workbook

Sheet Summary
A1: McKenzie River Luxury Inn - Pro Forma Summary
A3: Pricing updated to $1,995,000 – Improving investor returns and financing metrics.
A6: Year 1 Base Revenue ($) | B6: =Annual_5Y!B10 -> 344172.8623
A7: Year 1 Base NOI ($) | B7: =Annual_5Y!B25 -> 150370.6318
A8: NOI Margin | B8: =Annual_5Y!B26 -> 0.4369043825
A9: Modeled revenue streams | B9: 3 suites + flex room + log cabin + 3 RV sites + events
A11: Scenario Summary (Year 1, unlevered)
A12: Scenario | B12: Revenue ($) | C12: OpEx ($) | D12: NOI ($) | E12: NOI Margin
A13: Low | B13: =365*Assumptions!$B$20*Assumptions!$C$20*Assumptions!$D$20+365*Assumptions!$B$21*Assumptions!$C$21*Assumptions!$D$21+365*Assumptions!$B$22*Assumptions!$C$22*Assumptions!$D$22+365*Assumptions!$B$23*Assumptions!$C$23*Assumptions!$D$23+Assumptions!$C$25 -> 236042.5 | C13: =B13*Assumptions!$C$30+(365*Assumptions!$B$20*Assumptions!$C$20*Assumptions!$D$20+365*Assumptions!$B$21*Assumptions!$C$21*Assumptions!$D$21+365*Assumptions!$B$22*Assumptions!$C$22*Assumptions!$D$22+365*Assumptions!$B$23*Assumptions!$C$23*Assumptions!$D$23)*Assumptions!$C$31+(365*Assumptions!$B$20*Assumptions!$C$20*Assumptions!$D$20+365*Assumptions!$B$21*Assumptions!$C$21*Assumptions!$D$21+365*Assumptions!$B$22*Assumptions!$C$22*Assumptions!$D$22+365*Assumptions!$B$23*Assumptions!$C$23*Assumptions!$D$23)*Assumptions!$C$32+Assumptions!$C$25*Assumptions!$C$33+B13*Assumptions!$C$34+SUM(Assumptions!$C$35:'Assumptions'!$C$40) -> 166096.15 | D13: =B13-C13 -> 69946.35 | E13: =D13/B13 -> 0.2963294746
A14: Base | B14: =Annual_5Y!B10 -> 344172.8623 | C14: =Annual_5Y!B24 -> 193802.2304 | D14: =Annual_5Y!B25 -> 150370.6318 | E14: =Annual_5Y!B26 -> 0.4369043825
A15: High | B15: =365*Assumptions!$B$20*Assumptions!$G$20*Assumptions!$H$20+365*Assumptions!$B$21*Assumptions!$G$21*Assumptions!$H$21+365*Assumptions!$B$22*Assumptions!$G$22*Assumptions!$H$22+365*Assumptions!$B$23*Assumptions!$G$23*Assumptions!$H$23+Assumptions!$G$25 -> 437664.5 | C15: =B15*Assumptions!$E$30+(365*Assumptions!$B$20*Assumptions!$G$20*Assumptions!$H$20+365*Assumptions!$B$21*Assumptions!$G$21*Assumptions!$H$21+365*Assumptions!$B$22*Assumptions!$G$22*Assumptions!$H$22+365*Assumptions!$B$23*Assumptions!$G$23*Assumptions!$H$23)*Assumptions!$E$31+(365*Assumptions!$B$20*Assumptions!$G$20*Assumptions!$H$20+365*Assumptions!$B$21*Assumptions!$G$21*Assumptions!$H$21+365*Assumptions!$B$22*Assumptions!$G$22*Assumptions!$H$22+365*Assumptions!$B$23*Assumptions!$G$23*Assumptions!$H$23)*Assumptions!$E$32+Assumptions!$G$25*Assumptions!$E$33+B15*Assumptions!$E$34+SUM(Assumptions!$E$35:'Assumptions'!$E$40) -> 213120.601 | D15: =B15-C15 -> 224543.899 | E15: =D15/B15 -> 0.5130502908
A17: Base-Case 5-Year Revenue / NOI
A18: Metric | B18: Year 1 | C18: Year 2 | D18: Year 3 | E18: Year 4 | F18: Year 5
A19: Total Revenue | B19: =Annual_5Y!B10 -> 344172.8623 | C19: =Annual_5Y!C10 -> 356218.9124 | D19: =Annual_5Y!D10 -> 368686.5744 | E19: =Annual_5Y!E10 -> 381590.6045 | F19: =Annual_5Y!F10 -> 394946.2756
A20: Total OpEx | B20: =Annual_5Y!B24 -> 193802.2304 | C20: =Annual_5Y!C24 -> 199895.3085 | D20: =Annual_5Y!D24 -> 206184.3943 | E20: =Annual_5Y!E24 -> 212675.9168 | F20: =Annual_5Y!F24 -> 219376.5194
A21: NOI | B21: =Annual_5Y!B25 -> 150370.6318 | C21: =Annual_5Y!C25 -> 156323.604 | D21: =Annual_5Y!D25 -> 162502.1801 | E21: =Annual_5Y!E25 -> 168914.6877 | F21: =Annual_5Y!F25 -> 175569.7562
A23: Important: this model is a market-based estimate only. It does not use the seller's trailing financials, county tax records, actual insurance quotes, or a restaurant/bar operating budget. It is best used as a decision-support draft and should be refined with booking history, permit review, and a detailed event calendar.

Sheet Assumptions
A1: McKenzie River Luxury Inn Pro Forma - Assumptions & Comparable Market Data
A3: Comparable Market / Rate Set
A4: Comparable / Market Data | B4: Area | C4: Type | D4: ADR / Nightly Rate ($) | E4: Occupancy | F4: Notes | G4: Source URL
A5: Eagle Rock Lodge (visible room rates) | B5: Vida | C5: Luxury B&B | D5: 300 | F5: Visible room rates on Eagle Rock pages run from $260 to $325, with most premium rooms at $325. | G5: https://eaglerocklodge.com/
A6: McKenzie Orchards B&B | B6: Springfield | C6: Luxury B&B | D6: 225 | F6: Luxury riverside B&B near Springfield; standard room rate shown at $225 incl. breakfast. | G6: https://www.mkobb.com/rooms/mkobb_all_2.php
A7: McKenzie River House | B7: McKenzie corridor | C7: Vacation rental | D7: 300 | F7: 3BR/2BA river house listed at $300/night plus cleaning fee. | G7: https://mckenzieriverhouse.com/
A8: McKenzie River Mountain Resort | B8: Blue River | C8: Lodge rooms | D8: 122.5 | F8: Rebuild plan shows lodge rooms at $95-$150/night. | G8: https://rivermountainresort.com/hotel/
A9: Belknap Hot Springs Lodge | B9: McKenzie Bridge | C9: Lodge rooms | D9: 177.5 | F9: Belknap FAQ shows lodge rooms at $140-$215/night. | G9: https://www.belknaphotsprings.com/faqs/
A10: Belknap Hot Springs RV | B10: McKenzie Bridge | C10: RV full hookups | D10: 50 | F10: Belknap RV full hookups listed at $50/night. | G10: https://www.belknaphotsprings.com/r-v-sites/
A11: Springfield STR market (AirROI) | B11: Springfield | C11: STR market | D11: 221 | E11: 0.415 | F11: AirROI snippet: $221 ADR, 41.5% occupancy, peak June / lowest January. | G11: https://www.airroi.com/report/world/united-states/oregon/springfield
A12: Walterville STR market (AirDNA) | B12: Walterville | C12: STR market | D12: 261 | E12: 0.37 | F12: AirDNA snippet: $261 ADR, 37% occupancy. | G12: https://www.airdna.co/vacation-rental-data/app/us/oregon/walterville/overview
A13: Vida STR market (AirDNA) | B13: Vida | C13: STR market | D13: 287 | E13: 0.44 | F13: AirDNA snippet: $287 ADR, 44% occupancy. | G13: https://www.airdna.co/vacation-rental-data/app/us/oregon/vida/overview
A14: Blue River STR market (AirDNA) | B14: Blue River | C14: STR market | D14: 252 | E14: 0.48 | F14: AirDNA snippet: $252 ADR, 48% occupancy. | G14: https://www.airdna.co/vacation-rental-data/app/us/oregon/blue-river/overview
A15: Eugene STR market (AirROI) | B15: Eugene | C15: STR market | D15: 270 | E15: 0.43 | F15: AirROI snippet: $270 ADR, 43% occupancy. | G15: https://www.airroi.com/report/world/united-states/oregon/eugene
A18: Subject Operating Assumptions (editable inputs in blue)
A19: Revenue Unit | B19: Units | C19: Low ADR ($) | D19: Low Occ. | E19: Base ADR ($) | F19: Base Occ. | G19: High ADR ($) | H19: High Occ. | I19: Notes | J19: Source / Logic
A20: Luxury Suites | B20: 3 | C20: 275 | D20: 0.48 | E20: 295 | F20: 0.6 | G20: 325 | H20: 0.68 | I20: Three primary rentable suites, positioned between McKenzie Orchards and Eagle Rock premium rooms. | J20: Base ADR set slightly above Vida / Blue River STR ADRs and below premium Eagle Rock top rooms.
A21: Flex Room (additional lodging) | B21: 1 | C21: 165 | D21: 0.28 | E21: 185 | F21: 0.4 | G21: 205 | H21: 0.48 | I21: Modeled as extra lodging / bunk / workshop space; lower ADR and occupancy than main suites. | J21: Discounted to main suites because of flexible use and likely more variable demand.
A22: 1BR / 1.5BA Log Cabin | B22: 1 | C22: 245 | D22: 0.4 | E22: 275 | F22: 0.52 | G22: 295 | H22: 0.62 | I22: Standalone luxury cabin in excellent condition; suitable for owner, caretaker or nightly rental. | J22: Anchored to local vacation-rental rates ($250-$300+) and subject's riverfront positioning.
A23: RV Full Hookup Sites | B23: 3 | C23: 45 | D23: 0.18 | E23: 55 | F23: 0.27 | G23: 60 | H23: 0.35 | I23: Three RV spaces; modeled conservatively because winter season is slow in the corridor. | J23: Belknap full-hookup comp is $50/night; subject modeled slightly above base in base/high cases.
A25: Event Revenue (annual) | C25: 30000 | E25: 45000 | G25: 70000 | I25: Includes weddings, retreats, private dinners / workshops. Kitchen / café upside beyond this is not modeled. | J25: Eagle Rock public event listing shows $5,000 wedding pricing; nearby venues span roughly $4k-$10k+.
A28: Expense Assumptions (owner-operator, before debt service / depreciation / income tax)
A29: Expense Category | B29: Basis | C29: Low | D29: Base | E29: High | F29: Format | G29: Comment
A30: Payroll & Management | B30: % of total revenue | C30: 0.21 | D30: 0.2 | E30: 0.19 | F30: % | G30: Owner-operator model with on-site oversight; fully absentee ownership would likely require a higher payroll load.
A31: Cleaning / Linen / Guest Supplies | B31: % of lodging + RV revenue | C31: 0.065 | D31: 0.06 | E31: 0.058 | F31: % | G31: Includes turnover cleaning, laundry, toiletries, breakfast basics and suite consumables.
A32: Marketing / OTA / Merchant Fees | B32: % of lodging + RV revenue | C32: 0.075 | D32: 0.07 | E32: 0.065 | F32: % | G32: Blended direct booking, OTA commissions and card fees.
A33: Event Direct Costs | B33: % of event revenue | C33: 0.17 | D33: 0.15 | E33: 0.14 | F33: % | G33: Venue setup, cleanup, staffing, consumables; catering not fully modeled as a standalone P&L.
A34: Reserve for Replacement | B34: % of total revenue | C34: 0.03 | D34: 0.03 | E34: 0.025 | F34: % | G34: FF&E / capital reserve for hospitality property upkeep.
A35: Utilities | B35: Annual fixed ($) | C35: 18000 | D35: 16000 | E35: 15000 | F35: $ | G35: Solar and infrastructure reduce utility burden versus a more typical multi-building property.
A36: Repairs & Maintenance | B36: Annual fixed ($) | C36: 13000 | D36: 12000 | E36: 11000 | F36: $ | G36: Routine repairs only; major one-time capital items excluded from NOI.
A37: Grounds / Jacuzzi / Garden Care | B37: Annual fixed ($) | C37: 10000 | D37: 9000 | E37: 8500 | F37: $ | G37: Reflects large riverfront grounds, Japanese garden, spa and outdoor guest areas.
A38: Insurance | B38: Annual fixed ($) | C38: 12000 | D38: 11000 | E38: 10000 | F38: $ | G38: Estimate only; actual quote required.
A39: Property Taxes | B39: Annual fixed ($) | C39: 15000 | D39: 14000 | E39: 13000 | F39: $ | G39: Placeholder estimate; verify with county tax records.
A40: Admin / Software / Licenses | B40: Annual fixed ($) | C40: 7500 | D40: 7000 | E40: 6500 | F40: $ | G40: Reservation software, bookkeeping, permits and general admin.
A44: Multi-Year Growth Assumptions
A45: Metric | B45: Low | C45: Base | D45: High | E45: Format | F45: Comment
A46: Annual revenue growth after Year 1 | B46: 0.02 | C46: 0.035 | D46: 0.05 | E46: % | F46: Captures pricing power plus modest operating ramp.
A47: Annual fixed expense inflation | B47: 0.025 | C47: 0.025 | D47: 0.03 | E47: % | F47: Inflation applied to fixed costs only; variable ratios remain constant.
A51: Base-case monthly seasonality (drawn from corridor seasonality: strong Jun-Sep, weak winter)
A52: Month | B52: Days | C52: Suites Occ. Factor | D52: Flex Occ. Factor | E52: Cabin Occ. Factor | F52: RV Occ. Factor | G52: ADR Factor | H52: Event Weight
A53: Jan | B53: 31 | C53: 0.58 | D53: 0.45 | E53: 0.62 | F53: 0.3 | G53: 0.92 | H53: 0
A54: Feb | B54: 28 | C54: 0.57 | D54: 0.48 | E54: 0.6 | F54: 0.35 | G54: 0.92 | H54: 0
A55: Mar | B55: 31 | C55: 0.61 | D55: 0.55 | E55: 0.65 | F55: 0.45 | G55: 0.95 | H55: 0.03
A56: Apr | B56: 30 | C56: 0.63 | D56: 0.6 | E56: 0.68 | F56: 0.6 | G56: 0.98 | H56: 0.05
A57: May | B57: 31 | C57: 0.96 | D57: 0.9 | E57: 0.98 | F57: 1 | G57: 1.02 | H57: 0.1
A58: Jun | B58: 30 | C58: 1.49 | D58: 1.4 | E58: 1.45 | F58: 1.6 | G58: 1.08 | H58: 0.16
A59: Jul | B59: 31 | C59: 1.66 | D59: 1.7 | E59: 1.58 | F59: 1.9 | G59: 1.12 | H59: 0.16
A60: Aug | B60: 31 | C60: 1.6 | D60: 1.6 | E60: 1.55 | F60: 1.85 | G60: 1.12 | H60: 0.15
A61: Sep | B61: 30 | C61: 1.25 | D61: 1.3 | E61: 1.25 | F61: 1.2 | G61: 1.05 | H61: 0.15
A62: Oct | B62: 31 | C62: 1.15 | D62: 1.1 | E62: 1.1 | F62: 0.7 | G62: 1 | H62: 0.1
A63: Nov | B63: 30 | C63: 0.79 | D63: 0.7 | E63: 0.74 | F63: 0.4 | G63: 0.95 | H63: 0.05
A64: Dec | B64: 31 | C64: 0.57 | D64: 0.52 | E64: 0.6 | F64: 0.25 | G64: 0.9 | H64: 0.05
A65: Average / sum check | C65: =AVERAGE(C53:C64) -> 0.9883333333 | D65: =AVERAGE(D53:D64) -> 0.9416666667 | E65: =AVERAGE(E53:E64) -> 0.9833333333 | F65: =AVERAGE(F53:F64) -> 0.8833333333 | G65: =AVERAGE(G53:G64) -> 1.000833333 | H65: =SUM(H53:H64) -> 1
A67: Method note: this is a market-based operating model, not a historical reconstruction. It uses public room-rate comps, public STR ADR / occupancy snapshots from nearby markets, and a conservative event model. Debt service, depreciation, income tax and any restaurant / bar / guide-package upside are excluded.

Sheet Monthly_Base
A1: Year 1 Monthly Base-Case Operating Statement
A3: Month | B3: Days | C3: Suite Occ. | D3: Suite ADR ($) | E3: Suite Revenue ($) | F3: Flex Revenue ($) | G3: Cabin Revenue ($) | H3: RV Revenue ($) | I3: Event Revenue ($) | J3: Total Revenue ($) | K3: Payroll ($) | L3: Cleaning / Guest ($) | M3: Marketing / OTA ($) | N3: Event Direct ($) | O3: Reserve ($) | P3: Fixed OpEx ($) | Q3: Total OpEx ($) | R3: NOI ($)
A4: Jan | B4: 31 | C4: =Assumptions!$F$20*Assumptions!$C$53/Assumptions!$C$65 -> 0.3521079258 | D4: =Assumptions!$E$20*Assumptions!$G$53/Assumptions!$G$65 -> 271.1740216 | E4: =Assumptions!$B$20*B4*C4*D4 -> 8879.874573 | F4: =Assumptions!$B$21*B4*(Assumptions!$F$21*Assumptions!$D$53/Assumptions!$D$65)*(Assumptions!$E$21*Assumptions!$G$53/Assumptions!$G$65) -> 1007.708208 | G4: =Assumptions!$B$22*B4*(Assumptions!$F$22*Assumptions!$E$53/Assumptions!$E$65)*(Assumptions!$E$22*Assumptions!$G$53/Assumptions!$G$65) -> 2569.299459 | H4: =Assumptions!$B$23*B4*(Assumptions!$F$23*Assumptions!$F$53/Assumptions!$F$65)*(Assumptions!$E$23*Assumptions!$G$53/Assumptions!$G$65) -> 431.1536864 | I4: =Assumptions!$E$25*Assumptions!$H$53 -> 0 | J4: =SUM(E4:I4) -> 12888.03593 | K4: =J4*Assumptions!$D$30 -> 2577.607185 | L4: =(E4+F4+G4+H4)*Assumptions!$D$31 -> 773.2821556 | M4: =(E4+F4+G4+H4)*Assumptions!$D$32 -> 902.1625149 | N4: =I4*Assumptions!$D$33 -> 0 | O4: =J4*Assumptions!$D$34 -> 386.6410778 | P4: =SUM(Assumptions!$D$35:'Assumptions'!$D$40)/12 -> 5750 | Q4: =SUM(K4:P4) -> 10389.69293 | R4: =J4-Q4 -> 2498.342993
A5: Feb | B5: 28 | C5: =Assumptions!$F$20*Assumptions!$C$54/Assumptions!$C$65 -> 0.3460370995 | D5: =Assumptions!$E$20*Assumptions!$G$54/Assumptions!$G$65 -> 271.1740216 | E5: =Assumptions!$B$20*B5*C5*D5 -> 7882.24684 | F5: =Assumptions!$B$21*B5*(Assumptions!$F$21*Assumptions!$D$54/Assumptions!$D$65)*(Assumptions!$E$21*Assumptions!$G$54/Assumptions!$G$65) -> 970.8672625 | G5: =Assumptions!$B$22*B5*(Assumptions!$F$22*Assumptions!$E$54/Assumptions!$E$65)*(Assumptions!$E$22*Assumptions!$G$54/Assumptions!$G$65) -> 2245.797654 | H5: =Assumptions!$B$23*B5*(Assumptions!$F$23*Assumptions!$F$54/Assumptions!$F$65)*(Assumptions!$E$23*Assumptions!$G$54/Assumptions!$G$65) -> 454.3339921 | I5: =Assumptions!$E$25*Assumptions!$H$54 -> 0 | J5: 11553.24575 | K5: =J5*Assumptions!$D$30 -> 2310.64915 | L5: =(E5+F5+G5+H5)*Assumptions!$D$31 -> 693.194745 | M5: =(E5+F5+G5+H5)*Assumptions!$D$32 -> 808.7272025 | N5: =I5*Assumptions!$D$33 -> 0 | O5: =J5*Assumptions!$D$34 -> 346.5973725 | P5: =SUM(Assumptions!$D$35:'Assumptions'!$D$40)/12 -> 5750 | Q5: 9909.16847 | R5: 1644.07728
A6: Mar | B6: 31 | C6: =Assumptions!$F$20*Assumptions!$C$55/Assumptions!$C$65 -> 0.3703204047 | D6: =Assumptions!$E$20*Assumptions!$G$55/Assumptions!$G$65 -> 280.0166528 | E6: =Assumptions!$B$20*B6*C6*D6 -> 9643.716858 | F6: =Assumptions!$B$21*B6*(Assumptions!$F$21*Assumptions!$D$55/Assumptions!$D$65)*(Assumptions!$E$21*Assumptions!$G$55/Assumptions!$G$65) -> 1271.805649 | G6: =Assumptions!$B$22*B6*(Assumptions!$F$22*Assumptions!$E$55/Assumptions!$E$65)*(Assumptions!$E$22*Assumptions!$G$55/Assumptions!$G$65) -> 2781.455849 | H6: =Assumptions!$B$23*B6*(Assumptions!$F$23*Assumptions!$F$55/Assumptions!$F$65)*(Assumptions!$E$23*Assumptions!$G$55/Assumptions!$G$65) -> 667.8195686 | I6: =Assumptions!$E$25*Assumptions!$H$55 -> 1350 | J6: 15714.79792 | K6: =J6*Assumptions!$D$30 -> 3142.959585 | L6: =(E6+F6+G6+H6)*Assumptions!$D$31 -> 861.8878754 | M6: =(E6+F6+G6+H6)*Assumptions!$D$32 -> 1005.535855 | N6: =I6*Assumptions!$D$33 -> 202.5 | O6: =J6*Assumptions!$D$34 -> 471.4439377 | P6: =SUM(Assumptions!$D$35:'Assumptions'!$D$40)/12 -> 5750 | Q6: 11434.32725 | R6: 4280.470671
A7: Apr | B7: 30 | C7: =Assumptions!$F$20*Assumptions!$C$56/Assumptions!$C$65 -> 0.3824620573 | D7: =Assumptions!$E$20*Assumptions!$G$56/Assumptions!$G$65 -> 288.8592839 | E7: =Assumptions!$B$20*B7*C7*D7 -> 9942.994441 | F7: =Assumptions!$B$21*B7*(Assumptions!$F$21*Assumptions!$D$56/Assumptions!$D$65)*(Assumptions!$E$21*Assumptions!$G$56/Assumptions!$G$65) -> 1385.068785 | G7: =Assumptions!$B$22*B7*(Assumptions!$F$22*Assumptions!$E$56/Assumptions!$E$65)*(Assumptions!$E$22*Assumptions!$G$56/Assumptions!$G$65) -> 2904.890444 | H7: =Assumptions!$B$23*B7*(Assumptions!$F$23*Assumptions!$F$56/Assumptions!$F$65)*(Assumptions!$E$23*Assumptions!$G$56/Assumptions!$G$65) -> 888.9143324 | I7: =Assumptions!$E$25*Assumptions!$H$56 -> 2250 | J7: 17371.868 | K7: =J7*Assumptions!$D$30 -> 3474.373601 | L7: =(E7+F7+G7+H7)*Assumptions!$D$31 -> 907.3120802 | M7: =(E7+F7+G7+H7)*Assumptions!$D$32 -> 1058.53076 | N7: =I7*Assumptions!$D$33 -> 337.5 | O7: =J7*Assumptions!$D$34 -> 521.1560401 | P7: =SUM(Assumptions!$D$35:'Assumptions'!$D$40)/12 -> 5750 | Q7: 12048.87248 | R7: 5322.995522
A8: May | B8: 31 | C8: =Assumptions!$F$20*Assumptions!$C$57/Assumptions!$C$65 -> 0.5827993255 | D8: =Assumptions!$E$20*Assumptions!$G$57/Assumptions!$G$65 -> 300.6494588 | E8: =Assumptions!$B$20*B8*C8*D8 -> 16295.30207 | F8: =Assumptions!$B$21*B8*(Assumptions!$F$21*Assumptions!$D$57/Assumptions!$D$65)*(Assumptions!$E$21*Assumptions!$G$57/Assumptions!$G$65) -> 2234.483417 | G8: =Assumptions!$B$22*B8*(Assumptions!$F$22*Assumptions!$E$57/Assumptions!$E$65)*(Assumptions!$E$22*Assumptions!$G$57/Assumptions!$G$65) -> 4502.580189 | H8: =Assumptions!$B$23*B8*(Assumptions!$F$23*Assumptions!$F$57/Assumptions!$F$65)*(Assumptions!$E$23*Assumptions!$G$57/Assumptions!$G$65) -> 1593.394058 | I8: =Assumptions!$E$25*Assumptions!$H$57 -> 4500 | J8: 29125.75973 | K8: =J8*Assumptions!$D$30 -> 5825.151946 | L8: =(E8+F8+G8+H8)*Assumptions!$D$31 -> 1477.545584 | M8: =(E8+F8+G8+H8)*Assumptions!$D$32 -> 1723.803181 | N8: =I8*Assumptions!$D$33 -> 675 | O8: =J8*Assumptions!$D$34 -> 873.7727919 | P8: =SUM(Assumptions!$D$35:'Assumptions'!$D$40)/12 -> 5750 | Q8: 16325.2735 | R8: 12800.48623
A9: Jun | B9: 30 | C9: =Assumptions!$F$20*Assumptions!$C$58/Assumptions!$C$65 -> 0.9045531197 | D9: =Assumptions!$E$20*Assumptions!$G$58/Assumptions!$G$65 -> 318.3347211 | E9: =Assumptions!$B$20*B9*C9*D9 -> 25915.55986 | F9: =Assumptions!$B$21*B9*(Assumptions!$F$21*Assumptions!$D$58/Assumptions!$D$65)*(Assumptions!$E$21*Assumptions!$G$58/Assumptions!$G$65) -> 3561.605447 | G9: =Assumptions!$B$22*B9*(Assumptions!$F$22*Assumptions!$E$58/Assumptions!$E$65)*(Assumptions!$E$22*Assumptions!$G$58/Assumptions!$G$65) -> 6826.318181 | H9: =Assumptions!$B$23*B9*(Assumptions!$F$23*Assumptions!$F$58/Assumptions!$F$65)*(Assumptions!$E$23*Assumptions!$G$58/Assumptions!$G$65) -> 2612.319671 | I9: =Assumptions!$E$25*Assumptions!$H$58 -> 7200 | J9: 46115.80315 | K9: =J9*Assumptions!$D$30 -> 9223.160631 | L9: =(E9+F9+G9+H9)*Assumptions!$D$31 -> 2334.948189 | M9: =(E9+F9+G9+H9)*Assumptions!$D$32 -> 2724.106221 | N9: =I9*Assumptions!$D$33 -> 1080 | O9: =J9*Assumptions!$D$34 -> 1383.474095 | P9: =SUM(Assumptions!$D$35:'Assumptions'!$D$40)/12 -> 5750 | Q9: 22495.68914 | R9: 23620.11402
A10: Jul | B10: 31 | C10: =Assumptions!$F$20*Assumptions!$C$59/Assumptions!$C$65 -> 1.007757167 | D10: =Assumptions!$E$20*Assumptions!$G$59/Assumptions!$G$65 -> 330.1248959 | E10: =Assumptions!$B$20*B10*C10*D10 -> 30939.77288 | F10: =Assumptions!$B$21*B10*(Assumptions!$F$21*Assumptions!$D$59/Assumptions!$D$65)*(Assumptions!$E$21*Assumptions!$G$59/Assumptions!$G$65) -> 4634.484125 | G10: =Assumptions!$B$22*B10*(Assumptions!$F$22*Assumptions!$E$59/Assumptions!$E$65)*(Assumptions!$E$22*Assumptions!$G$59/Assumptions!$G$65) -> 7970.954284 | H10: =Assumptions!$B$23*B10*(Assumptions!$F$23*Assumptions!$F$59/Assumptions!$F$65)*(Assumptions!$E$23*Assumptions!$G$59/Assumptions!$G$65) -> 3324.257408 | I10: =Assumptions!$E$25*Assumptions!$H$59 -> 7200 | J10: 54069.46869 | K10: =J10*Assumptions!$D$30 -> 10813.89374 | L10: =(E10+F10+G10+H10)*Assumptions!$D$31 -> 2812.168122 | M10: =(E10+F10+G10+H10)*Assumptions!$D$32 -> 3280.862808 | N10: =I10*Assumptions!$D$33 -> 1080 | O10: =J10*Assumptions!$D$34 -> 1622.084061 | P10: =SUM(Assumptions!$D$35:'Assumptions'!$D$40)/12 -> 5750 | Q10: 25359.00873 | R10: 28710.45996
A11: Aug | B11: 31 | C11: =Assumptions!$F$20*Assumptions!$C$60/Assumptions!$C$65 -> 0.9713322091 | D11: =Assumptions!$E$20*Assumptions!$G$60/Assumptions!$G$65 -> 330.1248959 | E11: =Assumptions!$B$20*B11*C11*D11 -> 29821.46783 | F11: =Assumptions!$B$21*B11*(Assumptions!$F$21*Assumptions!$D$60/Assumptions!$D$65)*(Assumptions!$E$21*Assumptions!$G$60/Assumptions!$G$65) -> 4361.867411 | G11: =Assumptions!$B$22*B11*(Assumptions!$F$22*Assumptions!$E$60/Assumptions!$E$65)*(Assumptions!$E$22*Assumptions!$G$60/Assumptions!$G$65) -> 7819.607051 | H11: =Assumptions!$B$23*B11*(Assumptions!$F$23*Assumptions!$F$60/Assumptions!$F$65)*(Assumptions!$E$23*Assumptions!$G$60/Assumptions!$G$65) -> 3236.77695 | I11: =Assumptions!$E$25*Assumptions!$H$60 -> 6750 | J11: 51989.71924 | K11: =J11*Assumptions!$D$30 -> 10397.94385 | L11: =(E11+F11+G11+H11)*Assumptions!$D$31 -> 2714.383155 | M11: =(E11+F11+G11+H11)*Assumptions!$D$32 -> 3166.780347 | N11: =I11*Assumptions!$D$33 -> 1012.5 | O11: =J11*Assumptions!$D$34 -> 1559.691577 | P11: =SUM(Assumptions!$D$35:'Assumptions'!$D$40)/12 -> 5750 | Q11: 24601.29893 | R11: 27388.42032
A12: Sep | B12: 30 | C12: =Assumptions!$F$20*Assumptions!$C$61/Assumptions!$C$65 -> 0.7588532884 | D12: =Assumptions!$E$20*Assumptions!$G$61/Assumptions!$G$65 -> 309.4920899 | E12: =Assumptions!$B$20*B12*C12*D12 -> 21137.31811 | F12: =Assumptions!$B$21*B12*(Assumptions!$F$21*Assumptions!$D$61/Assumptions!$D$65)*(Assumptions!$E$21*Assumptions!$G$61/Assumptions!$G$65) -> 3215.338251 | G12: =Assumptions!$B$22*B12*(Assumptions!$F$22*Assumptions!$E$61/Assumptions!$E$65)*(Assumptions!$E$22*Assumptions!$G$61/Assumptions!$G$65) -> 5721.291579 | H12: =Assumptions!$B$23*B12*(Assumptions!$F$23*Assumptions!$F$61/Assumptions!$F$65)*(Assumptions!$E$23*Assumptions!$G$61/Assumptions!$G$65) -> 1904.816427 | I12: =Assumptions!$E$25*Assumptions!$H$61 -> 6750 | J12: 38728.76437 | K12: =J12*Assumptions!$D$30 -> 7745.752874 | L12: =(E12+F12+G12+H12)*Assumptions!$D$31 -> 1918.725862 | M12: =(E12+F12+G12+H12)*Assumptions!$D$32 -> 2238.513506 | N12: =I12*Assumptions!$D$33 -> 1012.5 | O12: =J12*Assumptions!$D$34 -> 1161.862931 | P12: =SUM(Assumptions!$D$35:'Assumptions'!$D$40)/12 -> 5750 | Q12: 19827.35517 | R12: 18901.4092
A13: Oct | B13: 31 | C13: =Assumptions!$F$20*Assumptions!$C$62/Assumptions!$C$65 -> 0.6981450253 | D13: =Assumptions!$E$20*Assumptions!$G$62/Assumptions!$G$65 -> 294.7543714 | E13: =Assumptions!$B$20*B13*C13*D13 -> 19137.66072 | F13: =Assumptions!$B$21*B13*(Assumptions!$F$21*Assumptions!$D$62/Assumptions!$D$65)*(Assumptions!$E$21*Assumptions!$G$62/Assumptions!$G$65) -> 2677.485576 | G13: =Assumptions!$B$22*B13*(Assumptions!$F$22*Assumptions!$E$62/Assumptions!$E$65)*(Assumptions!$E$22*Assumptions!$G$62/Assumptions!$G$65) -> 4954.820136 | H13: =Assumptions!$B$23*B13*(Assumptions!$F$23*Assumptions!$F$62/Assumptions!$F$65)*(Assumptions!$E$23*Assumptions!$G$62/Assumptions!$G$65) -> 1093.505726 | I13: =Assumptions!$E$25*Assumptions!$H$62 -> 4500 | J13: 32363.47216 | K13: =J13*Assumptions!$D$30 -> 6472.694431 | L13: =(E13+F13+G13+H13)*Assumptions!$D$31 -> 1671.808329 | M13: =(E13+F13+G13+H13)*Assumptions!$D$32 -> 1950.443051 | N13: =I13*Assumptions!$D$33 -> 675 | O13: =J13*Assumptions!$D$34 -> 970.9041647 | P13: =SUM(Assumptions!$D$35:'Assumptions'!$D$40)/12 -> 5750 | Q13: 17490.84998 | R13: 14872.62218
A14: Nov | B14: 30 | C14: =Assumptions!$F$20*Assumptions!$C$63/Assumptions!$C$65 -> 0.4795952782 | D14: =Assumptions!$E$20*Assumptions!$G$63/Assumptions!$G$65 -> 280.0166528 | E14: =Assumptions!$B$20*B14*C14*D14 -> 12086.51981 | F14: =Assumptions!$B$21*B14*(Assumptions!$F$21*Assumptions!$D$63/Assumptions!$D$65)*(Assumptions!$E$21*Assumptions!$G$63/Assumptions!$G$65) -> 1566.44684 | G14: =Assumptions!$B$22*B14*(Assumptions!$F$22*Assumptions!$E$63/Assumptions!$E$65)*(Assumptions!$E$22*Assumptions!$G$63/Assumptions!$G$65) -> 3064.432747 | H14: =Assumptions!$B$23*B14*(Assumptions!$F$23*Assumptions!$F$63/Assumptions!$F$65)*(Assumptions!$E$23*Assumptions!$G$63/Assumptions!$G$65) -> 574.4684461 | I14: =Assumptions!$E$25*Assumptions!$H$63 -> 2250 | J14: 19541.86784 | K14: =J14*Assumptions!$D$30 -> 3908.373568 | L14: =(E14+F14+G14+H14)*Assumptions!$D$31 -> 1037.51207 | M14: =(E14+F14+G14+H14)*Assumptions!$D$32 -> 1210.430749 | N14: =I14*Assumptions!$D$33 -> 337.5 | O14: =J14*Assumptions!$D$34 -> 586.2560352 | P14: =SUM(Assumptions!$D$35:'Assumptions'!$D$40)/12 -> 5750 | Q14: 12830.07242 | R14: 6711.795417
A15: Dec | B15: 31 | C15: =Assumptions!$F$20*Assumptions!$C$64/Assumptions!$C$65 -> 0.3460370995 | D15: =Assumptions!$E$20*Assumptions!$G$64/Assumptions!$G$65 -> 265.2789342 | E15: =Assumptions!$B$20*B15*C15*D15 -> 8537.060825 | F15: =Assumptions!$B$21*B15*(Assumptions!$F$21*Assumptions!$D$64/Assumptions!$D$65)*(Assumptions!$E$21*Assumptions!$G$64/Assumptions!$G$65) -> 1139.148409 | G15: =Assumptions!$B$22*B15*(Assumptions!$F$22*Assumptions!$E$64/Assumptions!$E$65)*(Assumptions!$E$22*Assumptions!$G$64/Assumptions!$G$65) -> 2432.366248 | H15: =Assumptions!$B$23*B15*(Assumptions!$F$23*Assumptions!$F$64/Assumptions!$F$65)*(Assumptions!$E$23*Assumptions!$G$64/Assumptions!$G$65) -> 351.4839835 | I15: =Assumptions!$E$25*Assumptions!$H$64 -> 2250 | J15: 14710.05947 | K15: =J15*Assumptions!$D$30 -> 2942.011893 | L15: =(E15+F15+G15+H15)*Assumptions!$D$31 -> 747.6035679 | M15: =(E15+F15+G15+H15)*Assumptions!$D$32 -> 872.2041626 | N15: =I15*Assumptions!$D$33 -> 337.5 | O15: =J15*Assumptions!$D$34 -> 441.301784 | P15: =SUM(Assumptions!$D$35:'Assumptions'!$D$40)/12 -> 5750 | Q15: 11090.62141 | R15: 3619.438058
A16: Year 1 Total | E16: =SUM(E4:E15) -> 200219.4948 | F16: 28026.30938 | G16: 53793.81382 | H16: 17133.24425 | I16: 45000 | J16: 344172.8623 | K16: 68834.57245 | L16: 17950.37174 | M16: 20942.10036 | N16: 6750 | O16: 10325.18587 | P16: 69000 | Q16: 193802.2304 | R16: 150370.6318

Sheet Annual_5Y
A1: Base-Case 5-Year Annual Pro Forma (Unlevered)
B3: Year 1 | C3: Year 2 | D3: Year 3 | E3: Year 4 | F3: Year 5
A4: Revenue
A5: Luxury Suites | B5: =Monthly_Base!E16 -> 200219.4948 | C5: =B5*(1+Assumptions!$C$46) -> 207227.1771 | D5: =C5*(1+Assumptions!$C$46) -> 214480.1283 | E5: =D5*(1+Assumptions!$C$46) -> 221986.9328 | F5: =E5*(1+Assumptions!$C$46) -> 229756.4755
A6: Flex Room | B6: =Monthly_Base!F16 -> 28026.30938 | C6: =B6*(1+Assumptions!$C$46) -> 29007.23021 | D6: =C6*(1+Assumptions!$C$46) -> 30022.48326 | E6: =D6*(1+Assumptions!$C$46) -> 31073.27018 | F6: =E6*(1+Assumptions!$C$46) -> 32160.83464
A7: Log Cabin | B7: =Monthly_Base!G16 -> 53793.81382 | C7: =B7*(1+Assumptions!$C$46) -> 55676.59731 | D7: =C7*(1+Assumptions!$C$46) -> 57625.27821 | E7: =D7*(1+Assumptions!$C$46) -> 59642.16295 | F7: =E7*(1+Assumptions!$C$46) -> 61729.63865
A8: RV Sites | B8: =Monthly_Base!H16 -> 17133.24425 | C8: =B8*(1+Assumptions!$C$46) -> 17732.9078 | D8: =C8*(1+Assumptions!$C$46) -> 18353.55957 | E8: =D8*(1+Assumptions!$C$46) -> 18995.93416 | F8: =E8*(1+Assumptions!$C$46) -> 19660.79185
A9: Events | B9: =Monthly_Base!I16 -> 45000 | C9: =B9*(1+Assumptions!$C$46) -> 46575 | D9: =C9*(1+Assumptions!$C$46) -> 48205.125 | E9: =D9*(1+Assumptions!$C$46) -> 49892.30437 | F9: =E9*(1+Assumptions!$C$46) -> 51638.53503
A10: Total Revenue | B10: =SUM(B5:B9) -> 344172.8623 | C10: =SUM(C5:C9) -> 356218.9124 | D10: =SUM(D5:D9) -> 368686.5744 | E10: =SUM(E5:E9) -> 381590.6045 | F10: =SUM(F5:F9) -> 394946.2756
A12: Expenses
A13: Payroll & Management | B13: =B10*Assumptions!$D$30 -> 68834.57245 | C13: =C10*Assumptions!$D$30 -> 71243.78249 | D13: =D10*Assumptions!$D$30 -> 73737.31487 | E13: =E10*Assumptions!$D$30 -> 76318.12089 | F13: =F10*Assumptions!$D$30 -> 78989.25513
A14: Cleaning / Guest | B14: =(B5+B6+B7+B8)*Assumptions!$D$31 -> 17950.37174 | C14: =(C5+C6+C7+C8)*Assumptions!$D$31 -> 18578.63475 | D14: =(D5+D6+D7+D8)*Assumptions!$D$31 -> 19228.88696 | E14: =(E5+E6+E7+E8)*Assumptions!$D$31 -> 19901.89801 | F14: =(F5+F6+F7+F8)*Assumptions!$D$31 -> 20598.46444
A15: Marketing / OTA | B15: =(B5+B6+B7+B8)*Assumptions!$D$32 -> 20942.10036 | C15: =(C5+C6+C7+C8)*Assumptions!$D$32 -> 21675.07387 | D15: =(D5+D6+D7+D8)*Assumptions!$D$32 -> 22433.70146 | E15: =(E5+E6+E7+E8)*Assumptions!$D$32 -> 23218.88101 | F15: =(F5+F6+F7+F8)*Assumptions!$D$32 -> 24031.54184
A16: Event Direct | B16: =B9*Assumptions!$D$33 -> 6750 | C16: =C9*Assumptions!$D$33 -> 6986.25 | D16: =D9*Assumptions!$D$33 -> 7230.76875 | E16: =E9*Assumptions!$D$33 -> 7483.845656 | F16: =F9*Assumptions!$D$33 -> 7745.780254
A17: Reserve | B17: =B10*Assumptions!$D$34 -> 10325.18587 | C17: =C10*Assumptions!$D$34 -> 10686.56737 | D17: =D10*Assumptions!$D$34 -> 11060.59723 | E17: =E10*Assumptions!$D$34 -> 11447.71813 | F17: =F10*Assumptions!$D$34 -> 11848.38827
A18: Utilities | B18: =Assumptions!$D$35 -> 16000 | C18: =B18*(1+Assumptions!$C$47) -> 16400 | D18: =C18*(1+Assumptions!$C$47) -> 16810 | E18: =D18*(1+Assumptions!$C$47) -> 17230.25 | F18: =E18*(1+Assumptions!$C$47) -> 17661.00625
A19: Repairs & Maintenance | B19: =Assumptions!$D$36 -> 12000 | C19: =B19*(1+Assumptions!$C$47) -> 12300 | D19: =C19*(1+Assumptions!$C$47) -> 12607.5 | E19: =D19*(1+Assumptions!$C$47) -> 12922.6875 | F19: =E19*(1+Assumptions!$C$47) -> 13245.75469
A20: Grounds / Jacuzzi / Garden | B20: =Assumptions!$D$37 -> 9000 | C20: =B20*(1+Assumptions!$C$47) -> 9225 | D20: =C20*(1+Assumptions!$C$47) -> 9455.625 | E20: =D20*(1+Assumptions!$C$47) -> 9692.015625 | F20: =E20*(1+Assumptions!$C$47) -> 9934.316016
A21: Insurance | B21: =Assumptions!$D$38 -> 11000 | C21: =B21*(1+Assumptions!$C$47) -> 11275 | D21: =C21*(1+Assumptions!$C$47) -> 11556.875 | E21: =D21*(1+Assumptions!$C$47) -> 11845.79687 | F21: =E21*(1+Assumptions!$C$47) -> 12141.9418
A22: Property Taxes | B22: =Assumptions!$D$39 -> 14000 | C22: =B22*(1+Assumptions!$C$47) -> 14350 | D22: =C22*(1+Assumptions!$C$47) -> 14708.75 | E22: =D22*(1+Assumptions!$C$47) -> 15076.46875 | F22: =E22*(1+Assumptions!$C$47) -> 15453.38047
A23: Admin / Licenses | B23: =Assumptions!$D$40 -> 7000 | C23: =B23*(1+Assumptions!$C$47) -> 7175 | D23: =C23*(1+Assumptions!$C$47) -> 7354.375 | E23: =D23*(1+Assumptions!$C$47) -> 7538.234375 | F23: =E23*(1+Assumptions!$C$47) -> 7726.690234
A24: Total OpEx | B24: =SUM(B13:B23) -> 193802.2304 | C24: =SUM(C13:C23) -> 199895.3085 | D24: =SUM(D13:D23) -> 206184.3943 | E24: =SUM(E13:E23) -> 212675.9168 | F24: =SUM(F13:F23) -> 219376.5194
A25: NOI | B25: =B10-B24 -> 150370.6318 | C25: =C10-C24 -> 156323.604 | D25: =D10-D24 -> 162502.1801 | E25: =E10-E24 -> 168914.6877 | F25: =F10-F24 -> 175569.7562
A26: NOI Margin | B26: =B25/B10 -> 0.4369043825 | C26: =C25/C10 -> 0.4388413936 | D26: =D25/D10 -> 0.4407596896 | E26: =E25/E10 -> 0.4426594514 | F26: =F25/F10 -> 0.444540858
